Workbook

Sheet PARAMETRES

Sheet Salaries
Y1: 4 | Z1: =LOOKUP(Y1,AA5:AB104) -> Paul
F3: H | G3: H | H3: H | I3: HEURES TRAVAILLEES PAR MOIS
A4: N° | B4: NOM | F4: Théo | G4: Solde | H4: Réel | I4: 6 | J4: 7 | K4: 8 | L4: 9 | M4: 10 | N4: 11 | O4: 12 | P4: 1 | Q4: 2 | R4: 3 | S4: 4 | T4: 5
A5: 1 | B5: Albert | F5: 192 | G5: =IF(F5=0,"",H5-F5) -> 0 | H5: =IF(F5<>0,SUMIF(I5:T5,"<>#N/A"),"") -> 192 | I5: =IF($B5=""," ",VLOOKUP($B5,Juin!$A$6:$AH$101,34,FALSE)+VLOOKUP($B5,Juin!$A$6:$DB$101,106,FALSE)) -> 48 | J5: =IF($B5=""," ",VLOOKUP($B5,Juillet!$A$6:$AH$89,34,FALSE)+VLOOKUP($B5,Juillet!$A$6:$DB$89,106,FALSE)) -> 88 | K5: =IF($B5=""," ",INDEX(Aout!$AH$6:$AH$89,MATCH(B5,Aout!$A$6:$A$89,0))+INDEX(Aout!$DC$6:$DC$89,MATCH(B5,Aout!$A$6:$A$89,0))) -> 56 | AA5: 1 | AB5: Albert
A6: 2 | B6: Jacques | F6: 400 | G6: =IF(F6=0,"",H6-F6) -> 8 | H6: =IF(F6<>0,SUMIF(I6:T6,"<>#N/A"),"") -> 408 | I6: =IF($B6=""," ",VLOOKUP($B6,Juin!$A$6:$AH$101,34,FALSE)+VLOOKUP($B6,Juin!$A$6:$DB$101,106,FALSE)) -> 136 | J6: =IF($B6=""," ",VLOOKUP($B6,Juillet!$A$6:$AH$89,34,FALSE)+VLOOKUP($B6,Juillet!$A$6:$DB$89,106,FALSE)) -> 112 | K6: =IF($B6=""," ",INDEX(Aout!$AH$6:$AH$89,MATCH(B6,Aout!$A$6:$A$89,0))+INDEX(Aout!$DC$6:$DC$89,MATCH(B6,Aout!$A$6:$A$89,0))) -> 160 | AA6: 2 | AB6: Jacques
A7: 3 | B7: Marcel | F7: 0 | G7: =IF(F7=0,"",H7-F7) ->  | H7: =IF(F7<>0,SUMIF(I7:T7,"<>#N/A"),"") ->  | I7: =IF($B7=""," ",VLOOKUP($B7,Juin!$A$6:$AH$101,34,FALSE)+VLOOKUP($B7,Juin!$A$6:$DB$101,106,FALSE)) ->  | J7: =IF($B7=""," ",VLOOKUP($B7,Juillet!$A$6:$AH$89,34,FALSE)+VLOOKUP($B7,Juillet!$A$6:$DB$89,106,FALSE)) ->  | K7: =IF($B7=""," ",INDEX(Aout!$AH$6:$AH$89,MATCH(B7,Aout!$A$6:$A$89,0))+INDEX(Aout!$DC$6:$DC$89,MATCH(B7,Aout!$A$6:$A$89,0))) ->  | AA7: 3 | AB7: Marcel
A8: 4 | B8: Paul | F8: 456 | G8: =IF(F8=0,"",H8-F8) -> -136 | H8: =IF(F8<>0,SUMIF(I8:T8,"<>#N/A"),"") -> 320 | I8: =IF($B8=""," ",VLOOKUP($B8,Juin!$A$6:$AH$101,34,FALSE)+VLOOKUP($B8,Juin!$A$6:$DB$101,106,FALSE)) -> 144 | J8: =IF($B8=""," ",VLOOKUP($B8,Juillet!$A$6:$AH$89,34,FALSE)+VLOOKUP($B8,Juillet!$A$6:$DB$89,106,FALSE)) -> 88 | K8: =IF($B8=""," ",INDEX(Aout!$AH$6:$AH$89,MATCH(B8,Aout!$A$6:$A$89,0))+INDEX(Aout!$DC$6:$DC$89,MATCH(B8,Aout!$A$6:$A$89,0))) -> 88 | AA8: 4 | AB8: Paul
A9: 5 | B9: Pierre | F9: 440 | G9: =IF(F9=0,"",H9-F9) -> -8 | H9: =IF(F9<>0,SUMIF(I9:T9,"<>#N/A"),"") -> 432 | I9: =IF($B9=""," ",VLOOKUP($B9,Juin!$A$6:$AH$101,34,FALSE)+VLOOKUP($B9,Juin!$A$6:$DB$101,106,FALSE)) -> 152 | J9: =IF($B9=""," ",VLOOKUP($B9,Juillet!$A$6:$AH$89,34,FALSE)+VLOOKUP($B9,Juillet!$A$6:$DB$89,106,FALSE)) -> 144 | K9: =IF($B9=""," ",INDEX(Aout!$AH$6:$AH$89,MATCH(B9,Aout!$A$6:$A$89,0))+INDEX(Aout!$DC$6:$DC$89,MATCH(B9,Aout!$A$6:$A$89,0))) -> 136 | AA9: 5 | AB9: Pierre
A10: 6 | G10: =IF(F10=0,"",H10-F10) ->  | H10: =IF(F10<>0,SUMIF(I10:T10,"<>#N/A"),"") ->  | I10: =IF($B10=""," ",VLOOKUP($B10,Juin!$A$6:$AH$101,34,FALSE)+VLOOKUP($B10,Juin!$A$6:$DB$101,106,FALSE)) ->  | J10: =IF($B10=""," ",VLOOKUP($B10,Juillet!$A$6:$AH$89,34,FALSE)+VLOOKUP($B10,Juillet!$A$6:$DB$89,106,FALSE)) ->  | K10: =IF($B10=""," ",INDEX(Aout!$AH$6:$AH$89,MATCH(B10,Aout!$A$6:$A$89,0))+INDEX(Aout!$DC$6:$DC$89,MATCH(B10,Aout!$A$6:$A$89,0))) ->  | AA10: 6
A11: 7 | G11: =IF(F11=0,"",H11-F11) ->  | H11: =IF(F11<>0,SUMIF(I11:T11,"<>#N/A"),"") ->  | I11: =IF($B11=""," ",VLOOKUP($B11,Juin!$A$6:$AH$101,34,FALSE)+VLOOKUP($B11,Juin!$A$6:$DB$101,106,FALSE)) ->  | J11: =IF($B11=""," ",VLOOKUP($B11,Juillet!$A$6:$AH$89,34,FALSE)+VLOOKUP($B11,Juillet!$A$6:$DB$89,106,FALSE)) ->  | K11: =IF($B11=""," ",INDEX(Aout!$AH$6:$AH$89,MATCH(B11,Aout!$A$6:$A$89,0))+INDEX(Aout!$DC$6:$DC$89,MATCH(B11,Aout!$A$6:$A$89,0))) ->  | AA11: 7
A12: 8 | G12: =IF(F12=0,"",H12-F12) ->  | H12: =IF(F12<>0,SUMIF(I12:T12,"<>#N/A"),"") ->  | I12: =IF($B12=""," ",VLOOKUP($B12,Juin!$A$6:$AH$101,34,FALSE)+VLOOKUP($B12,Juin!$A$6:$DB$101,106,FALSE)) ->  | J12: =IF($B12=""," ",VLOOKUP($B12,Juillet!$A$6:$AH$89,34,FALSE)+VLOOKUP($B12,Juillet!$A$6:$DB$89,106,FALSE)) ->  | K12: =IF($B12=""," ",INDEX(Aout!$AH$6:$AH$89,MATCH(B12,Aout!$A$6:$A$89,0))+INDEX(Aout!$DC$6:$DC$89,MATCH(B12,Aout!$A$6:$A$89,0))) ->  | AA12: 8
A13: 9 | G13: =IF(F13=0,"",H13-F13) ->  | H13: =IF(F13<>0,SUMIF(I13:T13,"<>#N/A"),"") ->  | I13: =IF($B13=""," ",VLOOKUP($B13,Juin!$A$6:$AH$101,34,FALSE)+VLOOKUP($B13,Juin!$A$6:$DB$101,106,FALSE)) ->  | J13: =IF($B13=""," ",VLOOKUP($B13,Juillet!$A$6:$AH$89,34,FALSE)+VLOOKUP($B13,Juillet!$A$6:$DB$89,106,FALSE)) ->  | K13: =IF($B13=""," ",INDEX(Aout!$AH$6:$AH$89,MATCH(B13,Aout!$A$6:$A$89,0))+INDEX(Aout!$DC$6:$DC$89,MATCH(B13,Aout!$A$6:$A$89,0))) ->  | AA13: 9
A14: 10 | G14: =IF(F14=0,"",H14-F14) ->  | H14: =IF(F14<>0,SUMIF(I14:T14,"<>#N/A"),"") ->  | I14: =IF($B14=""," ",VLOOKUP($B14,Juin!$A$6:$AH$101,34,FALSE)+VLOOKUP($B14,Juin!$A$6:$DB$101,106,FALSE)) ->  | J14: =IF($B14=""," ",VLOOKUP($B14,Juillet!$A$6:$AH$89,34,FALSE)+VLOOKUP($B14,Juillet!$A$6:$DB$89,106,FALSE)) ->  | K14: =IF($B14=""," ",INDEX(Aout!$AH$6:$AH$89,MATCH(B14,Aout!$A$6:$A$89,0))+INDEX(Aout!$DC$6:$DC$89,MATCH(B14,Aout!$A$6:$A$89,0))) ->  | AA14: 10
A15: 11 | G15: =IF(F15=0,"",H15-F15) ->  | H15: =IF(F15<>0,SUMIF(I15:T15,"<>#N/A"),"") ->  | I15: =IF($B15=""," ",VLOOKUP($B15,Juin!$A$6:$AH$101,34,FALSE)+VLOOKUP($B15,Juin!$A$6:$DB$101,106,FALSE)) ->  | J15: =IF($B15=""," ",VLOOKUP($B15,Juillet!$A$6:$AH$89,34,FALSE)+VLOOKUP($B15,Juillet!$A$6:$DB$89,106,FALSE)) ->  | K15: =IF($B15=""," ",INDEX(Aout!$AH$6:$AH$89,MATCH(B15,Aout!$A$6:$A$89,0))+INDEX(Aout!$DC$6:$DC$89,MATCH(B15,Aout!$A$6:$A$89,0))) ->  | AA15: 11
A16: 12 | G16: =IF(F16=0,"",H16-F16) ->  | H16: =IF(F16<>0,SUMIF(I16:T16,"<>#N/A"),"") ->  | I16: =IF($B16=""," ",VLOOKUP($B16,Juin!$A$6:$AH$101,34,FALSE)+VLOOKUP($B16,Juin!$A$6:$DB$101,106,FALSE)) ->  | J16: =IF($B16=""," ",VLOOKUP($B16,Juillet!$A$6:$AH$89,34,FALSE)+VLOOKUP($B16,Juillet!$A$6:$DB$89,106,FALSE)) ->  | K16: =IF($B16=""," ",INDEX(Aout!$AH$6:$AH$89,MATCH(B16,Aout!$A$6:$A$89,0))+INDEX(Aout!$DC$6:$DC$89,MATCH(B16,Aout!$A$6:$A$89,0))) ->  | AA16: 12
A17: 13 | G17: =IF(F17=0,"",H17-F17) ->  | H17: =IF(F17<>0,SUMIF(I17:T17,"<>#N/A"),"") ->  | I17: =IF($B17=""," ",VLOOKUP($B17,Juin!$A$6:$AH$101,34,FALSE)+VLOOKUP($B17,Juin!$A$6:$DB$101,106,FALSE)) ->  | J17: =IF($B17=""," ",VLOOKUP($B17,Juillet!$A$6:$AH$89,34,FALSE)+VLOOKUP($B17,Juillet!$A$6:$DB$89,106,FALSE)) ->  | K17: =IF($B17=""," ",INDEX(Aout!$AH$6:$AH$89,MATCH(B17,Aout!$A$6:$A$89,0))+INDEX(Aout!$DC$6:$DC$89,MATCH(B17,Aout!$A$6:$A$89,0))) ->  | AA17: 13
A18: 14 | G18: =IF(F18=0,"",H18-F18) ->  | H18: =IF(F18<>0,SUMIF(I18:T18,"<>#N/A"),"") ->  | I18: =IF($B18=""," ",VLOOKUP($B18,Juin!$A$6:$AH$101,34,FALSE)+VLOOKUP($B18,Juin!$A$6:$DB$101,106,FALSE)) ->  | J18: =IF($B18=""," ",VLOOKUP($B18,Juillet!$A$6:$AH$89,34,FALSE)+VLOOKUP($B18,Juillet!$A$6:$DB$89,106,FALSE)) ->  | K18: =IF($B18=""," ",INDEX(Aout!$AH$6:$AH$89,MATCH(B18,Aout!$A$6:$A$89,0))+INDEX(Aout!$DC$6:$DC$89,MATCH(B18,Aout!$A$6:$A$89,0))) ->  | AA18: 14
A19: 15 | G19: =IF(F19=0,"",H19-F19) ->  | H19: =IF(F19<>0,SUMIF(I19:T19,"<>#N/A"),"") ->  | I19: =IF($B19=""," ",VLOOKUP($B19,Juin!$A$6:$AH$101,34,FALSE)+VLOOKUP($B19,Juin!$A$6:$DB$101,106,FALSE)) ->  | J19: =IF($B19=""," ",VLOOKUP($B19,Juillet!$A$6:$AH$89,34,FALSE)+VLOOKUP($B19,Juillet!$A$6:$DB$89,106,FALSE)) ->  | K19: =IF($B19=""," ",INDEX(Aout!$AH$6:$AH$89,MATCH(B19,Aout!$A$6:$A$89,0))+INDEX(Aout!$DC$6:$DC$89,MATCH(B19,Aout!$A$6:$A$89,0))) ->  | AA19: 15
A20: 16 | G20: =IF(F20=0,"",H20-F20) ->  | H20: =IF(F20<>0,SUMIF(I20:T20,"<>#N/A"),"") ->  | I20: =IF($B20=""," ",VLOOKUP($B20,Juin!$A$6:$AH$101,34,FALSE)+VLOOKUP($B20,Juin!$A$6:$DB$101,106,FALSE)) ->  | J20: =IF($B20=""," ",VLOOKUP($B20,Juillet!$A$6:$AH$89,34,FALSE)+VLOOKUP($B20,Juillet!$A$6:$DB$89,106,FALSE)) ->  | K20: =IF($B20=""," ",INDEX(Aout!$AH$6:$AH$89,MATCH(B20,Aout!$A$6:$A$89,0))+INDEX(Aout!$DC$6:$DC$89,MATCH(B20,Aout!$A$6:$A$89,0))) ->  | AA20: 16

Sheet Juin
C1: JUIN | CW1: 1
AH4: Mois | CX4: CP | CY4: Solde année | DA4: Maladie
B5: J | C5: 1 | D5: 2 | E5: 3 | F5: 4 | G5: 5 | H5: 6 | I5: 7 | J5: 8 | K5: 9 | L5: 10 | M5: 11 | N5: 12 | O5: 13 | P5: 14 | Q5: 15 | R5: 16 | S5: 17 | T5: 18 | U5: 19 | V5: 20 | W5: 21 | X5: 22 | Y5: 23 | Z5: 24 | AA5: 25 | AB5: 26 | AC5: 27 | AD5: 28 | AE5: 29 | AF5: 30 | AH5: H | CX5: J | CY5: H | CZ5: J | DA5: J | DB5: H Théo
A6: Paul | B6: =COUNTA(C6:AG6)-CX6-DA6 -> 18 | C6: X | D6: X | E6: X | I6: X | J6: X | K6: X | L6: X | O6: X | P6: X | Q6: X | U6: X | V6: X | W6: X | X6: X | AA6: X | AB6: X | AC6: X | AD6: X | AH6: =B6*8 -> 144 | CX6: =COUNTIF(C6:AG6,"CP") -> 0 | CY6: =IF($A6=0," ",VLOOKUP($A6,Salaries!$B$5:$G$104,6)) -> -136 | CZ6: =IFERROR(CY6/8,"") -> -17 | DA6: =COUNTIF(C6:AG6,"MAL")+COUNTIF(C6:AG6,"AT") -> 0 | DB6: 0
A7: Jacques | B7: =COUNTA(C7:AG7)-CX7-DA7 -> 17 | F7: X | G7: X | H7: X | K7: X | L7: X | M7: X | N7: X | R7: X | S7: X | T7: X | W7: X | X7: X | Y7: X | AC7: X | AD7: X | AE7: X | AF7: X | AH7: =B7*8 -> 136 | CX7: =COUNTIF(C7:AG7,"CP") -> 0 | CY7: =IF($A7=0," ",VLOOKUP($A7,Salaries!$B$5:$G$104,6)) -> 8 | CZ7: 1 | DA7: =COUNTIF(C7:AG7,"MAL")+COUNTIF(C7:AG7,"AT") -> 0 | DB7: 0
A8: Pierre | B8: 19 | C8: X | D8: X | E8: X | H8: X | I8: X | J8: X | M8: X | N8: X | O8: X | P8: X | S8: X | T8: X | U8: X | V8: X | Z8: X | AA8: X | AB8: X | AE8: X | AF8: X | AH8: 152 | CX8: 0 | CY8: =IF($A8=0," ",VLOOKUP($A8,Salaries!$B$5:$G$104,6)) -> -8 | CZ8: -1 | DA8: 0 | DB8: 0
A9: Albert | B9: 4 | F9: X | G9: X | L9: MAL | M9: MAL | N9: MAL | O9: MAL | P9: MAL | Q9: MAL | R9: MAL | Y9: X | Z9: X | AH9: 32 | CX9: 0 | CY9: =IF($A9=0," ",VLOOKUP($A9,Salaries!$B$5:$G$104,6)) -> 0 | CZ9: 0 | DA9: 7 | DB9: 16
B10: 0 | AH10: 0 | CX10: 0 | CY10: =IF($A10=0," ",VLOOKUP($A10,Salaries!$B$5:$G$104,6)) ->  | DA10: 0 | DB10: 0
B11: 0 | AH11: 0 | CX11: 0 | CY11: =IF($A11=0," ",VLOOKUP($A11,Salaries!$B$5:$G$104,6)) ->  | DA11: 0 | DB11: 0
B12: 0 | AH12: 0 | CX12: 0 | CY12: =IF($A12=0," ",VLOOKUP($A12,Salaries!$B$5:$G$104,6)) ->  | DA12: 0 | DB12: 0
B13: 0 | AH13: 0 | CX13: 0 | CY13: =IF($A13=0," ",VLOOKUP($A13,Salaries!$B$5:$G$104,6)) ->  | DA13: 0 | DB13: 0
B14: 0 | AH14: 0 | CX14: 0 | CY14: =IF($A14=0," ",VLOOKUP($A14,Salaries!$B$5:$G$104,6)) ->  | DA14: 0 | DB14: 0
B15: 0 | AH15: 0 | CX15: 0 | CY15: =IF($A15=0," ",VLOOKUP($A15,Salaries!$B$5:$G$104,6)) ->  | DA15: 0 | DB15: 0
B16: 0 | AH16: 0 | CX16: 0 | CY16: =IF($A16=0," ",VLOOKUP($A16,Salaries!$B$5:$G$104,6)) ->  | DA16: 0 | DB16: 0
B17: 0 | AH17: 0 | CX17: 0 | CY17: =IF($A17=0," ",VLOOKUP($A17,Salaries!$B$5:$G$104,6)) ->  | DA17: 0 | DB17: 0
B18: 0 | AH18: 0 | CX18: 0 | CY18: =IF($A18=0," ",VLOOKUP($A18,Salaries!$B$5:$G$104,6)) ->  | DA18: 0 | DB18: 0
B19: 0 | AH19: 0 | CX19: 0 | CY19: =IF($A19=0," ",VLOOKUP($A19,Salaries!$B$5:$G$104,6)) ->  | DA19: 0 | DB19: 0
B20: 0 | AH20: 0 | CX20: 0 | CY20: =IF($A20=0," ",VLOOKUP($A20,Salaries!$B$5:$G$104,6)) ->  | DA20: 0 | DB20: 0
B21: =COUNTA(C21:AG21)-CX21-DA21 -> 0 | AH21: =B21*8 -> 0 | CX21: =COUNTIF(C21:AG21,"CP") -> 0 | CY21: =IF($A21=0," ",VLOOKUP($A21,Salaries!$B$5:$G$104,6)) ->  | CZ21: =IFERROR(CY21/8,"") ->  | DA21: =COUNTIF(C21:AG21,"MAL")+COUNTIF(C21:AG21,"AT") -> 0 | DB21: 1
B22: 0 | AH22: 0 | CX22: 0 | CY22: =IF($A22=0," ",VLOOKUP($A22,Salaries!$B$5:$G$104,6)) ->  | DA22: 0 | DB22: 2
B23: 0 | AH23: 0 | CX23: 0 | CY23: =IF($A23=0," ",VLOOKUP($A23,Salaries!$B$5:$G$104,6)) ->  | DA23: 0 | DB23: 3
B24: 0 | AH24: 0 | CX24: 0 | CY24: =IF($A24=0," ",VLOOKUP($A24,Salaries!$B$5:$G$104,6)) ->  | DA24: 0 | DB24: 4
B25: 0 | AH25: 0 | CX25: 0 | CY25: =IF($A25=0," ",VLOOKUP($A25,Salaries!$B$5:$G$104,6)) ->  | DA25: 0 | DB25: 5
B26: 0 | AH26: 0 | CX26: 0 | CY26: =IF($A26=0," ",VLOOKUP($A26,Salaries!$B$5:$G$104,6)) ->  | DA26: 0 | DB26: 6
B27: 0 | AH27: 0 | CX27: 0 | CY27: =IF($A27=0," ",VLOOKUP($A27,Salaries!$B$5:$G$104,6)) ->  | DA27: 0 | DB27: 7
B28: 0 | AH28: 0 | CX28: 0 | CY28: =IF($A28=0," ",VLOOKUP($A28,Salaries!$B$5:$G$104,6)) ->  | DA28: 0 | DB28: 8
B29: 0 | AH29: 0 | CX29: 0 | CY29: =IF($A29=0," ",VLOOKUP($A29,Salaries!$B$5:$G$104,6)) ->  | DA29: 0 | DB29: 9
B30: 0 | AH30: 0 | CX30: 0 | CY30: =IF($A30=0," ",VLOOKUP($A30,Salaries!$B$5:$G$104,6)) ->  | DA30: 0 | DB30: 10
B31: 0 | AH31: 0 | CX31: 0 | CY31: =IF($A31=0," ",VLOOKUP($A31,Salaries!$B$5:$G$104,6)) ->  | DA31: 0 | DB31: 11
B32: 0 | AH32: 0 | CX32: 0 | CY32: =IF($A32=0," ",VLOOKUP($A32,Salaries!$B$5:$G$104,6)) ->  | DA32: 0 | DB32: 12
B33: 0 | AH33: 0 | CX33: 0 | CY33: =IF($A33=0," ",VLOOKUP($A33,Salaries!$B$5:$G$104,6)) ->  | DA33: 0 | DB33: 13
B34: 0 | AH34: 0 | CX34: 0 | CY34: =IF($A34=0," ",VLOOKUP($A34,Salaries!$B$5:$G$104,6)) ->  | DA34: 0 | DB34: 14
B35: 0 | AH35: 0 | CX35: 0 | CY35: =IF($A35=0," ",VLOOKUP($A35,Salaries!$B$5:$G$104,6)) ->  | DA35: 0 | DB35: 15
B36: 0 | AH36: 0 | CX36: 0 | CY36: =IF($A36=0," ",VLOOKUP($A36,Salaries!$B$5:$G$104,6)) ->  | DA36: 0 | DB36: 16
B37: 0 | AH37: 0 | CX37: 0 | CY37: =IF($A37=0," ",VLOOKUP($A37,Salaries!$B$5:$G$104,6)) ->  | DA37: 0 | DB37: 17
B38: 0 | AH38: 0 | CX38: 0 | CY38: =IF($A38=0," ",VLOOKUP($A38,Salaries!$B$5:$G$104,6)) ->  | DA38: 0 | DB38: 18
B39: 0 | AH39: 0 | CX39: 0 | CY39: =IF($A39=0," ",VLOOKUP($A39,Salaries!$B$5:$G$104,6)) ->  | DA39: 0 | DB39: 19
B40: 0 | AH40: 0 | CX40: 0 | CY40: =IF($A40=0," ",VLOOKUP($A40,Salaries!$B$5:$G$104,6)) ->  | DA40: 0 | DB40: 20
B41: 0 | AH41: 0 | CX41: 0 | CY41: =IF($A41=0," ",VLOOKUP($A41,Salaries!$B$5:$G$104,6)) ->  | DA41: 0 | DB41: 21
B42: 0 | AH42: 0 | CX42: 0 | CY42: =IF($A42=0," ",VLOOKUP($A42,Salaries!$B$5:$G$104,6)) ->  | DA42: 0 | DB42: 22
B43: 0 | AH43: 0 | CX43: 0 | CY43: =IF($A43=0," ",VLOOKUP($A43,Salaries!$B$5:$G$104,6)) ->  | DA43: 0 | DB43: 23
B44: 0 | AH44: 0 | CX44: 0 | CY44: =IF($A44=0," ",VLOOKUP($A44,Salaries!$B$5:$G$104,6)) ->  | DA44: 0 | DB44: 24
B45: 0 | AH45: 0 | CX45: 0 | CY45: =IF($A45=0," ",VLOOKUP($A45,Salaries!$B$5:$G$104,6)) ->  | DA45: 0 | DB45: 25
B46: 0 | AH46: 0 | CX46: 0 | CY46: =IF($A46=0," ",VLOOKUP($A46,Salaries!$B$5:$G$104,6)) ->  | DA46: 0 | DB46: 26
B47: 0 | AH47: 0 | CX47: 0 | CY47: =IF($A47=0," ",VLOOKUP($A47,Salaries!$B$5:$G$104,6)) ->  | DA47: 0 | DB47: 27
B48: 0 | AH48: 0 | CX48: 0 | CY48: =IF($A48=0," ",VLOOKUP($A48,Salaries!$B$5:$G$104,6)) ->  | DA48: 0 | DB48: 28
B49: 0 | AH49: 0 | CX49: 0 | CY49: =IF($A49=0," ",VLOOKUP($A49,Salaries!$B$5:$G$104,6)) ->  | DA49: 0 | DB49: 29
B50: 0 | AH50: 0 | CX50: 0 | CY50: =IF($A50=0," ",VLOOKUP($A50,Salaries!$B$5:$G$104,6)) ->  | DA50: 0 | DB50: 30
B51: 0 | AH51: 0 | CX51: 0 | CY51: =IF($A51=0," ",VLOOKUP($A51,Salaries!$B$5:$G$104,6)) ->  | DA51: 0 | DB51: 31
B52: 0 | AH52: 0 | CX52: 0 | CY52: =IF($A52=0," ",VLOOKUP($A52,Salaries!$B$5:$G$104,6)) ->  | DA52: 0 | DB52: 32
B53: 0 | AH53: 0 | CX53: 0 | CY53: =IF($A53=0," ",VLOOKUP($A53,Salaries!$B$5:$G$104,6)) ->  | DA53: 0 | DB53: 33
B54: 0 | AH54: 0 | CX54: 0 | CY54: =IF($A54=0," ",VLOOKUP($A54,Salaries!$B$5:$G$104,6)) ->  | DA54: 0 | DB54: 34
B55: 0 | AH55: 0 | CX55: 0 | CY55: =IF($A55=0," ",VLOOKUP($A55,Salaries!$B$5:$G$104,6)) ->  | DA55: 0 | DB55: 35
B56: 0 | AH56: 0 | CX56: 0 | CY56: =IF($A56=0," ",VLOOKUP($A56,Salaries!$B$5:$G$104,6)) ->  | DA56: 0 | DB56: 36
B57: 0 | AH57: 0 | CX57: 0 | CY57: =IF($A57=0," ",VLOOKUP($A57,Salaries!$B$5:$G$104,6)) ->  | DA57: 0 | DB57: 37
B58: 0 | AH58: 0 | CX58: 0 | CY58: =IF($A58=0," ",VLOOKUP($A58,Salaries!$B$5:$G$104,6)) ->  | DA58: 0 | DB58: 38
B59: 0 | AH59: 0 | CX59: 0 | CY59: =IF($A59=0," ",VLOOKUP($A59,Salaries!$B$5:$G$104,6)) ->  | DA59: 0 | DB59: 39
B60: 0 | AH60: 0 | CX60: 0 | CY60: =IF($A60=0," ",VLOOKUP($A60,Salaries!$B$5:$G$104,6)) ->  | DA60: 0 | DB60: 40
B61: 0 | AH61: 0 | CX61: 0 | CY61: =IF($A61=0," ",VLOOKUP($A61,Salaries!$B$5:$G$104,6)) ->  | DA61: 0 | DB61: 41
B62: 0 | AH62: 0 | CX62: 0 | CY62: =IF($A62=0," ",VLOOKUP($A62,Salaries!$B$5:$G$104,6)) ->  | DA62: 0 | DB62: 42
B63: 0 | AH63: 0 | CX63: 0 | CY63: =IF($A63=0," ",VLOOKUP($A63,Salaries!$B$5:$G$104,6)) ->  | DA63: 0 | DB63: 43
B64: 0 | AH64: 0 | CX64: 0 | CY64: =IF($A64=0," ",VLOOKUP($A64,Salaries!$B$5:$G$104,6)) ->  | DA64: 0 | DB64: 44
B65: 0 | AH65: 0 | CX65: 0 | CY65: =IF($A65=0," ",VLOOKUP($A65,Salaries!$B$5:$G$104,6)) ->  | DA65: 0 | DB65: 45
B66: 0 | AH66: 0 | CX66: 0 | CY66: =IF($A66=0," ",VLOOKUP($A66,Salaries!$B$5:$G$104,6)) ->  | DA66: 0 | DB66: 46
B67: 0 | AH67: 0 | CX67: 0 | CY67: =IF($A67=0," ",VLOOKUP($A67,Salaries!$B$5:$G$104,6)) ->  | DA67: 0 | DB67: 47
B68: 0 | AH68: 0 | CX68: 0 | CY68: =IF($A68=0," ",VLOOKUP($A68,Salaries!$B$5:$G$104,6)) ->  | DA68: 0 | DB68: 48
B69: 0 | AH69: 0 | CX69: 0 | CY69: =IF($A69=0," ",VLOOKUP($A69,Salaries!$B$5:$G$104,6)) ->  | DA69: 0 | DB69: 49
B70: 0 | AH70: 0 | CX70: 0 | CY70: =IF($A70=0," ",VLOOKUP($A70,Salaries!$B$5:$G$104,6)) ->  | DA70: 0 | DB70: 50
B71: 0 | AH71: 0 | CX71: 0 | CY71: =IF($A71=0," ",VLOOKUP($A71,Salaries!$B$5:$G$104,6)) ->  | DA71: 0 | DB71: 51
B72: 0 | AH72: 0 | CX72: 0 | CY72: =IF($A72=0," ",VLOOKUP($A72,Salaries!$B$5:$G$104,6)) ->  | DA72: 0 | DB72: 52
B73: 0 | AH73: 0 | CX73: 0 | CY73: =IF($A73=0," ",VLOOKUP($A73,Salaries!$B$5:$G$104,6)) ->  | DA73: 0 | DB73: 53
B74: 0 | AH74: 0 | CX74: 0 | CY74: =IF($A74=0," ",VLOOKUP($A74,Salaries!$B$5:$G$104,6)) ->  | DA74: 0 | DB74: 54
B75: 0 | AH75: 0 | CX75: 0 | CY75: =IF($A75=0," ",VLOOKUP($A75,Salaries!$B$5:$G$104,6)) ->  | DA75: 0 | DB75: 55
B76: 0 | AH76: 0 | CX76: 0 | CY76: =IF($A76=0," ",VLOOKUP($A76,Salaries!$B$5:$G$104,6)) ->  | DA76: 0 | DB76: 56
B77: 0 | AH77: 0 | CX77: 0 | CY77: =IF($A77=0," ",VLOOKUP($A77,Salaries!$B$5:$G$104,6)) ->  | DA77: 0 | DB77: 57
B78: 0 | AH78: 0 | CX78: 0 | CY78: =IF($A78=0," ",VLOOKUP($A78,Salaries!$B$5:$G$104,6)) ->  | DA78: 0 | DB78: 58
B79: 0 | AH79: 0 | CX79: 0 | CY79: =IF($A79=0," ",VLOOKUP($A79,Salaries!$B$5:$G$104,6)) ->  | DA79: 0 | DB79: 59
B80: 0 | AH80: 0 | CX80: 0 | CY80: =IF($A80=0," ",VLOOKUP($A80,Salaries!$B$5:$G$104,6)) ->  | DA80: 0 | DB80: 60
B81: 0 | AH81: 0 | CX81: 0 | CY81: =IF($A81=0," ",VLOOKUP($A81,Salaries!$B$5:$G$104,6)) ->  | DA81: 0 | DB81: 61
B82: 0 | AH82: 0 | CX82: 0 | CY82: =IF($A82=0," ",VLOOKUP($A82,Salaries!$B$5:$G$104,6)) ->  | DA82: 0 | DB82: 62
B83: 0 | AH83: 0 | CX83: 0 | CY83: =IF($A83=0," ",VLOOKUP($A83,Salaries!$B$5:$G$104,6)) ->  | DA83: 0 | DB83: 63
B84: 0 | AH84: 0 | CX84: 0 | CY84: =IF($A84=0," ",VLOOKUP($A84,Salaries!$B$5:$G$104,6)) ->  | DA84: 0 | DB84: 64
B85: =COUNTA(C85:AG85)-CX85-DA85 -> 0 | AH85: =B85*8 -> 0 | CX85: =COUNTIF(C85:AG85,"CP") -> 0 | CY85: =IF($A85=0," ",VLOOKUP($A85,Salaries!$B$5:$G$104,6)) ->  | CZ85: =IFERROR(CY85/8,"") ->  | DA85: =COUNTIF(C85:AG85,"MAL")+COUNTIF(C85:AG85,"AT") -> 0 | DB85: 65
B86: 0 | AH86: 0 | CX86: 0 | CY86: =IF($A86=0," ",VLOOKUP($A86,Salaries!$B$5:$G$104,6)) ->  | DA86: 0 | DB86: 66
B87: 0 | AH87: 0 | CX87: 0 | CY87: =IF($A87=0," ",VLOOKUP($A87,Salaries!$B$5:$G$104,6)) ->  | DA87: 0 | DB87: 67
B88: 0 | AH88: 0 | CX88: 0 | CY88: =IF($A88=0," ",VLOOKUP($A88,Salaries!$B$5:$G$104,6)) ->  | DA88: 0 | DB88: 68
B89: 0 | AH89: 0 | CX89: 0 | CY89: =IF($A89=0," ",VLOOKUP($A89,Salaries!$B$5:$G$104,6)) ->  | DA89: 0 | DB89: 69

Sheet Juillet
C1: JUILLET | CW1: 1
AH4: Mois | CX4: CP | CY4: Solde année | DA4: Maladie
B5: J | C5: 1 | D5: 2 | E5: 3 | F5: 4 | G5: 5 | H5: 6 | I5: 7 | J5: 8 | K5: 9 | L5: 10 | M5: 11 | N5: 12 | O5: 13 | P5: 14 | Q5: 15 | R5: 16 | S5: 17 | T5: 18 | U5: 19 | V5: 20 | W5: 21 | X5: 22 | Y5: 23 | Z5: 24 | AA5: 25 | AB5: 26 | AC5: 27 | AD5: 28 | AE5: 29 | AF5: 30 | AG5: 31 | AH5: H | CX5: J | CY5: H | CZ5: J | DA5: J | DB5: H Théo
A6: Jacques | B6: =COUNTA(C6:AG6)-CX6-DA6 -> 14 | C6: X | D6: X | E6: X | I6: X | J6: X | K6: X | L6: X | O6: X | P6: X | Q6: X | U6: CP | V6: CP | W6: CP | X6: CP | Y6: CP | Z6: CP | AA6: CP | AB6: X | AC6: X | AD6: X | AG6: X | AH6: =B6*8 -> 112 | CX6: =COUNTIF(C6:AG6,"CP") -> 7 | CY6: =IF($A6=0," ",VLOOKUP($A6,Salaries!$B$5:$G$104,6)) -> 8 | CZ6: =IFERROR(CY6/8,"") -> 1 | DA6: =COUNTIF(C6:AG6,"MAL")+COUNTIF(C6:AG6,"AT") -> 0 | DB6: 0
A7: Pierre | B7: =COUNTA(C7:AG7)-CX7-DA7 -> 18 | F7: X | G7: X | H7: X | K7: X | L7: X | M7: X | N7: X | R7: X | S7: X | T7: X | W7: X | X7: X | Y7: X | Z7: X | AC7: X | AD7: X | AE7: X | AF7: X | AH7: =B7*8 -> 144 | CX7: =COUNTIF(C7:AG7,"CP") -> 0 | CY7: =IF($A7=0," ",VLOOKUP($A7,Salaries!$B$5:$G$104,6)) -> -8 | CZ7: =IFERROR(CY7/8,"") -> -1 | DA7: =COUNTIF(C7:AG7,"MAL")+COUNTIF(C7:AG7,"AT") -> 0 | DB7: 0
A8: Paul | B8: 11 | S8: X | T8: X | U8: X | V8: X | Y8: X | Z8: X | AA8: X | AB8: X | AE8: X | AF8: X | AG8: X | AH8: 88 | CX8: 0 | CY8: =IF($A8=0," ",VLOOKUP($A8,Salaries!$B$5:$G$104,6)) -> -136 | CZ8: -17 | DA8: 0 | DB8: 0
A9: Paul | B9: 9 | C9: X | D9: X | G9: X | H9: X | I9: X | J9: X | M9: X | N9: X | O9: X | AH9: 72 | CX9: 0 | CY9: =IF($A9=0," ",VLOOKUP($A9,Salaries!$B$5:$G$104,6)) -> -136 | CZ9: -17 | DA9: 0 | DB9: 0
A10: Albert | B10: 11 | E10: X | F10: X | P10: X | Q10: X | R10: X | U10: X | V10: X | W10: X | X10: X | AA10: X | AG10: X | AH10: 88 | CX10: 0 | CY10: =IF($A10=0," ",VLOOKUP($A10,Salaries!$B$5:$G$104,6)) -> 0 | CZ10: 0 | DA10: 0 | DB10: 0
A11: 0 | B11: 0 | AH11: 0 | CX11: 0 | CY11: =IF($A11=0," ",VLOOKUP($A11,Salaries!$B$5:$G$104,6)) ->  | DA11: 0 | DB11: 0
B12: 0 | AH12: 0 | CX12: 0 | CY12: =IF($A12=0," ",VLOOKUP($A12,Salaries!$B$5:$G$104,6)) ->  | DA12: 0 | DB12: 0
B13: 0 | AH13: 0 | CX13: 0 | CY13: =IF($A13=0," ",VLOOKUP($A13,Salaries!$B$5:$G$104,6)) ->  | DA13: 0 | DB13: 0
B14: 0 | AH14: 0 | CX14: 0 | CY14: =IF($A14=0," ",VLOOKUP($A14,Salaries!$B$5:$G$104,6)) ->  | DA14: 0 | DB14: 0
B15: 0 | AH15: 0 | CX15: 0 | CY15: =IF($A15=0," ",VLOOKUP($A15,Salaries!$B$5:$G$104,6)) ->  | DA15: 0 | DB15: 0
B16: 0 | AH16: 0 | CX16: 0 | CY16: =IF($A16=0," ",VLOOKUP($A16,Salaries!$B$5:$G$104,6)) ->  | DA16: 0 | DB16: 0
B17: 0 | AH17: 0 | CX17: 0 | CY17: =IF($A17=0," ",VLOOKUP($A17,Salaries!$B$5:$G$104,6)) ->  | DA17: 0 | DB17: 0
B18: 0 | AH18: 0 | CX18: 0 | CY18: =IF($A18=0," ",VLOOKUP($A18,Salaries!$B$5:$G$104,6)) ->  | DA18: 0 | DB18: 0
B19: 0 | AH19: 0 | CX19: 0 | CY19: =IF($A19=0," ",VLOOKUP($A19,Salaries!$B$5:$G$104,6)) ->  | DA19: 0 | DB19: 0
B20: 0 | AH20: 0 | CX20: 0 | CY20: =IF($A20=0," ",VLOOKUP($A20,Salaries!$B$5:$G$104,6)) ->  | DA20: 0 | DB20: 0
B21: =COUNTA(C21:AG21)-CX21-DA21 -> 0 | AH21: =B21*8 -> 0 | CX21: =COUNTIF(C21:AG21,"CP") -> 0 | CY21: =IF($A21=0," ",VLOOKUP($A21,Salaries!$B$5:$G$104,6)) ->  | CZ21: =IFERROR(CY21/8,"") ->  | DA21: =COUNTIF(C21:AG21,"MAL")+COUNTIF(C21:AG21,"AT") -> 0 | DB21: 1
B22: 0 | AH22: 0 | CX22: 0 | CY22: =IF($A22=0," ",VLOOKUP($A22,Salaries!$B$5:$G$104,6)) ->  | DA22: 0 | DB22: 2
B23: 0 | AH23: 0 | CX23: 0 | CY23: =IF($A23=0," ",VLOOKUP($A23,Salaries!$B$5:$G$104,6)) ->  | DA23: 0 | DB23: 3
B24: 0 | AH24: 0 | CX24: 0 | CY24: =IF($A24=0," ",VLOOKUP($A24,Salaries!$B$5:$G$104,6)) ->  | DA24: 0 | DB24: 4
B25: 0 | AH25: 0 | CX25: 0 | CY25: =IF($A25=0," ",VLOOKUP($A25,Salaries!$B$5:$G$104,6)) ->  | DA25: 0 | DB25: 5
B26: 0 | AH26: 0 | CX26: 0 | CY26: =IF($A26=0," ",VLOOKUP($A26,Salaries!$B$5:$G$104,6)) ->  | DA26: 0 | DB26: 6
B27: 0 | AH27: 0 | CX27: 0 | CY27: =IF($A27=0," ",VLOOKUP($A27,Salaries!$B$5:$G$104,6)) ->  | DA27: 0 | DB27: 7
B28: 0 | AH28: 0 | CX28: 0 | CY28: =IF($A28=0," ",VLOOKUP($A28,Salaries!$B$5:$G$104,6)) ->  | DA28: 0 | DB28: 8
B29: 0 | AH29: 0 | CX29: 0 | CY29: =IF($A29=0," ",VLOOKUP($A29,Salaries!$B$5:$G$104,6)) ->  | DA29: 0 | DB29: 9
B30: 0 | AH30: 0 | CX30: 0 | CY30: =IF($A30=0," ",VLOOKUP($A30,Salaries!$B$5:$G$104,6)) ->  | DA30: 0 | DB30: 10
B31: 0 | AH31: 0 | CX31: 0 | CY31: =IF($A31=0," ",VLOOKUP($A31,Salaries!$B$5:$G$104,6)) ->  | DA31: 0 | DB31: 11
B32: 0 | AH32: 0 | CX32: 0 | CY32: =IF($A32=0," ",VLOOKUP($A32,Salaries!$B$5:$G$104,6)) ->  | DA32: 0 | DB32: 12
B33: 0 | AH33: 0 | CX33: 0 | CY33: =IF($A33=0," ",VLOOKUP($A33,Salaries!$B$5:$G$104,6)) ->  | DA33: 0 | DB33: 13
B34: 0 | AH34: 0 | CX34: 0 | CY34: =IF($A34=0," ",VLOOKUP($A34,Salaries!$B$5:$G$104,6)) ->  | DA34: 0 | DB34: 14
B35: 0 | AH35: 0 | CX35: 0 | CY35: =IF($A35=0," ",VLOOKUP($A35,Salaries!$B$5:$G$104,6)) ->  | DA35: 0 | DB35: 15
B36: 0 | AH36: 0 | CX36: 0 | CY36: =IF($A36=0," ",VLOOKUP($A36,Salaries!$B$5:$G$104,6)) ->  | DA36: 0 | DB36: 16
B37: 0 | AH37: 0 | CX37: 0 | CY37: =IF($A37=0," ",VLOOKUP($A37,Salaries!$B$5:$G$104,6)) ->  | DA37: 0 | DB37: 17
B38: 0 | AH38: 0 | CX38: 0 | CY38: =IF($A38=0," ",VLOOKUP($A38,Salaries!$B$5:$G$104,6)) ->  | DA38: 0 | DB38: 18
B39: 0 | AH39: 0 | CX39: 0 | CY39: =IF($A39=0," ",VLOOKUP($A39,Salaries!$B$5:$G$104,6)) ->  | DA39: 0 | DB39: 19
B40: 0 | AH40: 0 | CX40: 0 | CY40: =IF($A40=0," ",VLOOKUP($A40,Salaries!$B$5:$G$104,6)) ->  | DA40: 0 | DB40: 20
B41: 0 | AH41: 0 | CX41: 0 | CY41: =IF($A41=0," ",VLOOKUP($A41,Salaries!$B$5:$G$104,6)) ->  | DA41: 0 | DB41: 21
B42: 0 | AH42: 0 | CX42: 0 | CY42: =IF($A42=0," ",VLOOKUP($A42,Salaries!$B$5:$G$104,6)) ->  | DA42: 0 | DB42: 22
B43: 0 | AH43: 0 | CX43: 0 | CY43: =IF($A43=0," ",VLOOKUP($A43,Salaries!$B$5:$G$104,6)) ->  | DA43: 0 | DB43: 23
B44: 0 | AH44: 0 | CX44: 0 | CY44: =IF($A44=0," ",VLOOKUP($A44,Salaries!$B$5:$G$104,6)) ->  | DA44: 0 | DB44: 24
B45: 0 | AH45: 0 | CX45: 0 | CY45: =IF($A45=0," ",VLOOKUP($A45,Salaries!$B$5:$G$104,6)) ->  | DA45: 0 | DB45: 25
B46: 0 | AH46: 0 | CX46: 0 | CY46: =IF($A46=0," ",VLOOKUP($A46,Salaries!$B$5:$G$104,6)) ->  | DA46: 0 | DB46: 26
B47: 0 | AH47: 0 | CX47: 0 | CY47: =IF($A47=0," ",VLOOKUP($A47,Salaries!$B$5:$G$104,6)) ->  | DA47: 0 | DB47: 27
B48: 0 | AH48: 0 | CX48: 0 | CY48: =IF($A48=0," ",VLOOKUP($A48,Salaries!$B$5:$G$104,6)) ->  | DA48: 0 | DB48: 28
B49: 0 | AH49: 0 | CX49: 0 | CY49: =IF($A49=0," ",VLOOKUP($A49,Salaries!$B$5:$G$104,6)) ->  | DA49: 0 | DB49: 29
B50: 0 | AH50: 0 | CX50: 0 | CY50: =IF($A50=0," ",VLOOKUP($A50,Salaries!$B$5:$G$104,6)) ->  | DA50: 0 | DB50: 30
B51: 0 | AH51: 0 | CX51: 0 | CY51: =IF($A51=0," ",VLOOKUP($A51,Salaries!$B$5:$G$104,6)) ->  | DA51: 0 | DB51: 31
B52: 0 | AH52: 0 | CX52: 0 | CY52: =IF($A52=0," ",VLOOKUP($A52,Salaries!$B$5:$G$104,6)) ->  | DA52: 0 | DB52: 32
B53: 0 | AH53: 0 | CX53: 0 | CY53: =IF($A53=0," ",VLOOKUP($A53,Salaries!$B$5:$G$104,6)) ->  | DA53: 0 | DB53: 33
B54: 0 | AH54: 0 | CX54: 0 | CY54: =IF($A54=0," ",VLOOKUP($A54,Salaries!$B$5:$G$104,6)) ->  | DA54: 0 | DB54: 34
B55: 0 | AH55: 0 | CX55: 0 | CY55: =IF($A55=0," ",VLOOKUP($A55,Salaries!$B$5:$G$104,6)) ->  | DA55: 0 | DB55: 35
B56: 0 | AH56: 0 | CX56: 0 | CY56: =IF($A56=0," ",VLOOKUP($A56,Salaries!$B$5:$G$104,6)) ->  | DA56: 0 | DB56: 36
B57: 0 | AH57: 0 | CX57: 0 | CY57: =IF($A57=0," ",VLOOKUP($A57,Salaries!$B$5:$G$104,6)) ->  | DA57: 0 | DB57: 37
B58: 0 | AH58: 0 | CX58: 0 | CY58: =IF($A58=0," ",VLOOKUP($A58,Salaries!$B$5:$G$104,6)) ->  | DA58: 0 | DB58: 38
B59: 0 | AH59: 0 | CX59: 0 | CY59: =IF($A59=0," ",VLOOKUP($A59,Salaries!$B$5:$G$104,6)) ->  | DA59: 0 | DB59: 39
B60: 0 | AH60: 0 | CX60: 0 | CY60: =IF($A60=0," ",VLOOKUP($A60,Salaries!$B$5:$G$104,6)) ->  | DA60: 0 | DB60: 40
B61: 0 | AH61: 0 | CX61: 0 | CY61: =IF($A61=0," ",VLOOKUP($A61,Salaries!$B$5:$G$104,6)) ->  | DA61: 0 | DB61: 41
B62: 0 | AH62: 0 | CX62: 0 | CY62: =IF($A62=0," ",VLOOKUP($A62,Salaries!$B$5:$G$104,6)) ->  | DA62: 0 | DB62: 42
B63: 0 | AH63: 0 | CX63: 0 | CY63: =IF($A63=0," ",VLOOKUP($A63,Salaries!$B$5:$G$104,6)) ->  | DA63: 0 | DB63: 43
B64: 0 | AH64: 0 | CX64: 0 | CY64: =IF($A64=0," ",VLOOKUP($A64,Salaries!$B$5:$G$104,6)) ->  | DA64: 0 | DB64: 44
B65: 0 | AH65: 0 | CX65: 0 | CY65: =IF($A65=0," ",VLOOKUP($A65,Salaries!$B$5:$G$104,6)) ->  | DA65: 0 | DB65: 45
B66: 0 | AH66: 0 | CX66: 0 | CY66: =IF($A66=0," ",VLOOKUP($A66,Salaries!$B$5:$G$104,6)) ->  | DA66: 0 | DB66: 46
B67: 0 | AH67: 0 | CX67: 0 | CY67: =IF($A67=0," ",VLOOKUP($A67,Salaries!$B$5:$G$104,6)) ->  | DA67: 0 | DB67: 47
B68: 0 | AH68: 0 | CX68: 0 | CY68: =IF($A68=0," ",VLOOKUP($A68,Salaries!$B$5:$G$104,6)) ->  | DA68: 0 | DB68: 48
B69: 0 | AH69: 0 | CX69: 0 | CY69: =IF($A69=0," ",VLOOKUP($A69,Salaries!$B$5:$G$104,6)) ->  | DA69: 0 | DB69: 49
B70: 0 | AH70: 0 | CX70: 0 | CY70: =IF($A70=0," ",VLOOKUP($A70,Salaries!$B$5:$G$104,6)) ->  | DA70: 0 | DB70: 50
B71: 0 | AH71: 0 | CX71: 0 | CY71: =IF($A71=0," ",VLOOKUP($A71,Salaries!$B$5:$G$104,6)) ->  | DA71: 0 | DB71: 51
B72: 0 | AH72: 0 | CX72: 0 | CY72: =IF($A72=0," ",VLOOKUP($A72,Salaries!$B$5:$G$104,6)) ->  | DA72: 0 | DB72: 52
B73: 0 | AH73: 0 | CX73: 0 | CY73: =IF($A73=0," ",VLOOKUP($A73,Salaries!$B$5:$G$104,6)) ->  | DA73: 0 | DB73: 53
B74: 0 | AH74: 0 | CX74: 0 | CY74: =IF($A74=0," ",VLOOKUP($A74,Salaries!$B$5:$G$104,6)) ->  | DA74: 0 | DB74: 54
B75: 0 | AH75: 0 | CX75: 0 | CY75: =IF($A75=0," ",VLOOKUP($A75,Salaries!$B$5:$G$104,6)) ->  | DA75: 0 | DB75: 55
B76: 0 | AH76: 0 | CX76: 0 | CY76: =IF($A76=0," ",VLOOKUP($A76,Salaries!$B$5:$G$104,6)) ->  | DA76: 0 | DB76: 56
B77: 0 | AH77: 0 | CX77: 0 | CY77: =IF($A77=0," ",VLOOKUP($A77,Salaries!$B$5:$G$104,6)) ->  | DA77: 0 | DB77: 57
B78: 0 | AH78: 0 | CX78: 0 | CY78: =IF($A78=0," ",VLOOKUP($A78,Salaries!$B$5:$G$104,6)) ->  | DA78: 0 | DB78: 58
B79: 0 | AH79: 0 | CX79: 0 | CY79: =IF($A79=0," ",VLOOKUP($A79,Salaries!$B$5:$G$104,6)) ->  | DA79: 0 | DB79: 59
B80: 0 | AH80: 0 | CX80: 0 | CY80: =IF($A80=0," ",VLOOKUP($A80,Salaries!$B$5:$G$104,6)) ->  | DA80: 0 | DB80: 60
B81: 0 | AH81: 0 | CX81: 0 | CY81: =IF($A81=0," ",VLOOKUP($A81,Salaries!$B$5:$G$104,6)) ->  | DA81: 0 | DB81: 61
B82: 0 | AH82: 0 | CX82: 0 | CY82: =IF($A82=0," ",VLOOKUP($A82,Salaries!$B$5:$G$104,6)) ->  | DA82: 0 | DB82: 62
B83: 0 | AH83: 0 | CX83: 0 | CY83: =IF($A83=0," ",VLOOKUP($A83,Salaries!$B$5:$G$104,6)) ->  | DA83: 0 | DB83: 63
B84: 0 | AH84: 0 | CX84: 0 | CY84: =IF($A84=0," ",VLOOKUP($A84,Salaries!$B$5:$G$104,6)) ->  | DA84: 0 | DB84: 64
B85: =COUNTA(C85:AG85)-CX85-DA85 -> 0 | AH85: =B85*8 -> 0 | CX85: =COUNTIF(C85:AG85,"CP") -> 0 | CY85: =IF($A85=0," ",VLOOKUP($A85,Salaries!$B$5:$G$104,6)) ->  | CZ85: =IFERROR(CY85/8,"") ->  | DA85: =COUNTIF(C85:AG85,"MAL")+COUNTIF(C85:AG85,"AT") -> 0 | DB85: 65
B86: 0 | AH86: 0 | CX86: 0 | CY86: =IF($A86=0," ",VLOOKUP($A86,Salaries!$B$5:$G$104,6)) ->  | DA86: 0 | DB86: 66
B87: 0 | AH87: 0 | CX87: 0 | CY87: =IF($A87=0," ",VLOOKUP($A87,Salaries!$B$5:$G$104,6)) ->  | DA87: 0 | DB87: 67
B88: 0 | AH88: 0 | CX88: 0 | CY88: =IF($A88=0," ",VLOOKUP($A88,Salaries!$B$5:$G$104,6)) ->  | DA88: 0 | DB88: 68
B89: 0 | AH89: 0 | CX89: 0 | CY89: =IF($A89=0," ",VLOOKUP($A89,Salaries!$B$5:$G$104,6)) ->  | DA89: 0 | DB89: 69

Sheet Aout
C1: AOUT | CW1: 1
AH4: Mois | CX4: CP | CZ4: Solde année | DB4: Maladie
B5: J | C5: 1 | D5: 2 | E5: 3 | F5: 4 | G5: 5 | H5: 6 | I5: 7 | J5: 8 | K5: 9 | L5: 10 | M5: 11 | N5: 12 | O5: 13 | P5: 14 | Q5: 15 | R5: 16 | S5: 17 | T5: 18 | U5: 19 | V5: 20 | W5: 21 | X5: 22 | Y5: 23 | Z5: 24 | AA5: 25 | AB5: 26 | AC5: 27 | AD5: 28 | AE5: 29 | AF5: 30 | AG5: 31 | AH5: H | CX5: J | CZ5: H | DA5: J | DB5: J | DC5: H Théo
A6: Jacques | B6: =COUNTA(C6:AG6)-CX6-DB6 -> 20 | C6: X | D6: X | E6: X | I6: X | J6: X | K6: X | L6: X | O6: X | P6: X | Q6: X | R6: X | U6: X | V6: X | W6: X | X6: X | AA6: X | AB6: X | AC6: X | AD6: X | AG6: X | AH6: =B6*8 -> 160 | CX6: =COUNTIF(C6:AG6,"CP") -> 0 | CY6: =IF($A6=0," ",VLOOKUP($A6,Salaries!$B$5:$G$104,6)) -> 8 | CZ6: =IF($A6=0," ",VLOOKUP($A6,Salaries!$B$5:$G$104,6)) -> 8 | DA6: =IFERROR(CZ6/8,"") -> 1 | DB6: =COUNTIF(C6:AG6,"MAL")+COUNTIF(C6:AG6,"AT") -> 0 | DC6: 0
A7: Pierre | B7: =COUNTA(C7:AG7)-CX7-DB7 -> 17 | F7: X | G7: X | H7: X | K7: X | L7: X | M7: X | N7: X | R7: X | S7: X | T7: X | W7: X | X7: X | Y7: X | AC7: X | AD7: X | AE7: X | AF7: X | AH7: =B7*8 -> 136 | CX7: =COUNTIF(C7:AG7,"CP") -> 0 | CY7: =IF($A7=0," ",VLOOKUP($A7,Salaries!$B$5:$G$104,6)) -> -8 | CZ7: =IF($A7=0," ",VLOOKUP($A7,Salaries!$B$5:$G$104,6)) -> -8 | DA7: =IFERROR(CZ7/8,"") -> -1 | DB7: =COUNTIF(C7:AG7,"MAL")+COUNTIF(C7:AG7,"AT") -> 0 | DC7: 0
A8: Paul | B8: 11 | S8: X | T8: X | U8: X | V8: X | Y8: X | Z8: X | AA8: X | AB8: X | AE8: X | AF8: X | AG8: X | AH8: 88 | CX8: 0 | CY8: =IF($A8=0," ",VLOOKUP($A8,Salaries!$B$5:$G$104,6)) -> -136 | CZ8: =IF($A8=0," ",VLOOKUP($A8,Salaries!$B$5:$G$104,6)) -> -136 | DA8: -17 | DB8: 0 | DC8: 0
A9: Paul | B9: 8 | C9: X | D9: X | E9: X | H9: X | I9: X | J9: X | M9: X | N9: X | AH9: 64 | CX9: 0 | CY9: =IF($A9=0," ",VLOOKUP($A9,Salaries!$B$5:$G$104,6)) -> -136 | CZ9: =IF($A9=0," ",VLOOKUP($A9,Salaries!$B$5:$G$104,6)) -> -136 | DA9: -17 | DB9: 0 | DC9: 0
A10: Albert | B10: 7 | F10: X | G10: X | O10: X | P10: X | Q10: X | Z10: X | AG10: X | AH10: 56 | CX10: 0 | CY10: =IF($A10=0," ",VLOOKUP($A10,Salaries!$B$5:$G$104,6)) -> 0 | CZ10: =IF($A10=0," ",VLOOKUP($A10,Salaries!$B$5:$G$104,6)) -> 0 | DA10: 0 | DB10: 0
A11: 0 | B11: 0 | AH11: 0 | CX11: 0 | CY11: =IF($A11=0," ",VLOOKUP($A11,Salaries!$B$5:$G$104,6)) ->  | CZ11: =IF($A11=0," ",VLOOKUP($A11,Salaries!$B$5:$G$104,6)) ->  | DB11: 0 | DC11: 0
B12: 0 | AH12: 0 | CX12: 0 | CY12: =IF($A12=0," ",VLOOKUP($A12,Salaries!$B$5:$G$104,6)) ->  | CZ12: =IF($A12=0," ",VLOOKUP($A12,Salaries!$B$5:$G$104,6)) ->  | DB12: 0 | DC12: 0
B13: 0 | AH13: 0 | CX13: 0 | CY13: =IF($A13=0," ",VLOOKUP($A13,Salaries!$B$5:$G$104,6)) ->  | CZ13: =IF($A13=0," ",VLOOKUP($A13,Salaries!$B$5:$G$104,6)) ->  | DB13: 0 | DC13: 0
B14: 0 | AH14: 0 | CX14: 0 | CY14: =IF($A14=0," ",VLOOKUP($A14,Salaries!$B$5:$G$104,6)) ->  | CZ14: =IF($A14=0," ",VLOOKUP($A14,Salaries!$B$5:$G$104,6)) ->  | DB14: 0 | DC14: 0
B15: 0 | AH15: 0 | CX15: 0 | CY15: =IF($A15=0," ",VLOOKUP($A15,Salaries!$B$5:$G$104,6)) ->  | CZ15: =IF($A15=0," ",VLOOKUP($A15,Salaries!$B$5:$G$104,6)) ->  | DB15: 0 | DC15: 0
B16: 0 | AH16: 0 | CX16: 0 | CY16: =IF($A16=0," ",VLOOKUP($A16,Salaries!$B$5:$G$104,6)) ->  | CZ16: =IF($A16=0," ",VLOOKUP($A16,Salaries!$B$5:$G$104,6)) ->  | DB16: 0 | DC16: 0
B17: 0 | AH17: 0 | CX17: 0 | CY17: =IF($A17=0," ",VLOOKUP($A17,Salaries!$B$5:$G$104,6)) ->  | CZ17: =IF($A17=0," ",VLOOKUP($A17,Salaries!$B$5:$G$104,6)) ->  | DB17: 0 | DC17: 0
B18: 0 | AH18: 0 | CX18: 0 | CY18: =IF($A18=0," ",VLOOKUP($A18,Salaries!$B$5:$G$104,6)) ->  | CZ18: =IF($A18=0," ",VLOOKUP($A18,Salaries!$B$5:$G$104,6)) ->  | DB18: 0 | DC18: 0
B19: 0 | AH19: 0 | CX19: 0 | CY19: =IF($A19=0," ",VLOOKUP($A19,Salaries!$B$5:$G$104,6)) ->  | CZ19: =IF($A19=0," ",VLOOKUP($A19,Salaries!$B$5:$G$104,6)) ->  | DB19: 0 | DC19: 0
B20: 0 | AH20: 0 | CX20: 0 | CY20: =IF($A20=0," ",VLOOKUP($A20,Salaries!$B$5:$G$104,6)) ->  | CZ20: =IF($A20=0," ",VLOOKUP($A20,Salaries!$B$5:$G$104,6)) ->  | DB20: 0 | DC20: 0
B21: =COUNTA(C21:AG21)-CX21-DB21 -> 0 | AH21: =B21*8 -> 0 | CX21: =COUNTIF(C21:AG21,"CP") -> 0 | CY21: =IF($A21=0," ",VLOOKUP($A21,Salaries!$B$5:$G$104,6)) ->  | CZ21: =IF($A21=0," ",VLOOKUP($A21,Salaries!$B$5:$G$104,6)) ->  | DA21: =IFERROR(CZ21/8,"") ->  | DB21: =COUNTIF(C21:AG21,"MAL")+COUNTIF(C21:AG21,"AT") -> 0
B22: 0 | AH22: 0 | CX22: 0 | CY22: =IF($A22=0," ",VLOOKUP($A22,Salaries!$B$5:$G$104,6)) ->  | CZ22: =IF($A22=0," ",VLOOKUP($A22,Salaries!$B$5:$G$104,6)) ->  | DB22: 0
B23: 0 | AH23: 0 | CX23: 0 | CY23: =IF($A23=0," ",VLOOKUP($A23,Salaries!$B$5:$G$104,6)) ->  | CZ23: =IF($A23=0," ",VLOOKUP($A23,Salaries!$B$5:$G$104,6)) ->  | DB23: 0
B24: 0 | AH24: 0 | CX24: 0 | CY24: =IF($A24=0," ",VLOOKUP($A24,Salaries!$B$5:$G$104,6)) ->  | CZ24: =IF($A24=0," ",VLOOKUP($A24,Salaries!$B$5:$G$104,6)) ->  | DB24: 0
B25: 0 | AH25: 0 | CX25: 0 | CY25: =IF($A25=0," ",VLOOKUP($A25,Salaries!$B$5:$G$104,6)) ->  | CZ25: =IF($A25=0," ",VLOOKUP($A25,Salaries!$B$5:$G$104,6)) ->  | DB25: 0
B26: 0 | AH26: 0 | CX26: 0 | CY26: =IF($A26=0," ",VLOOKUP($A26,Salaries!$B$5:$G$104,6)) ->  | CZ26: =IF($A26=0," ",VLOOKUP($A26,Salaries!$B$5:$G$104,6)) ->  | DB26: 0
B27: 0 | AH27: 0 | CX27: 0 | CY27: =IF($A27=0," ",VLOOKUP($A27,Salaries!$B$5:$G$104,6)) ->  | CZ27: =IF($A27=0," ",VLOOKUP($A27,Salaries!$B$5:$G$104,6)) ->  | DB27: 0
B28: 0 | AH28: 0 | CX28: 0 | CY28: =IF($A28=0," ",VLOOKUP($A28,Salaries!$B$5:$G$104,6)) ->  | CZ28: =IF($A28=0," ",VLOOKUP($A28,Salaries!$B$5:$G$104,6)) ->  | DB28: 0
B29: 0 | AH29: 0 | CX29: 0 | CY29: =IF($A29=0," ",VLOOKUP($A29,Salaries!$B$5:$G$104,6)) ->  | CZ29: =IF($A29=0," ",VLOOKUP($A29,Salaries!$B$5:$G$104,6)) ->  | DB29: 0
B30: 0 | AH30: 0 | CX30: 0 | CY30: =IF($A30=0," ",VLOOKUP($A30,Salaries!$B$5:$G$104,6)) ->  | CZ30: =IF($A30=0," ",VLOOKUP($A30,Salaries!$B$5:$G$104,6)) ->  | DB30: 0
B31: 0 | AH31: 0 | CX31: 0 | CY31: =IF($A31=0," ",VLOOKUP($A31,Salaries!$B$5:$G$104,6)) ->  | CZ31: =IF($A31=0," ",VLOOKUP($A31,Salaries!$B$5:$G$104,6)) ->  | DB31: 0
B32: 0 | AH32: 0 | CX32: 0 | CY32: =IF($A32=0," ",VLOOKUP($A32,Salaries!$B$5:$G$104,6)) ->  | CZ32: =IF($A32=0," ",VLOOKUP($A32,Salaries!$B$5:$G$104,6)) ->  | DB32: 0
B33: 0 | AH33: 0 | CX33: 0 | CY33: =IF($A33=0," ",VLOOKUP($A33,Salaries!$B$5:$G$104,6)) ->  | CZ33: =IF($A33=0," ",VLOOKUP($A33,Salaries!$B$5:$G$104,6)) ->  | DB33: 0
B34: 0 | AH34: 0 | CX34: 0 | CY34: =IF($A34=0," ",VLOOKUP($A34,Salaries!$B$5:$G$104,6)) ->  | CZ34: =IF($A34=0," ",VLOOKUP($A34,Salaries!$B$5:$G$104,6)) ->  | DB34: 0
B35: 0 | AH35: 0 | CX35: 0 | CY35: =IF($A35=0," ",VLOOKUP($A35,Salaries!$B$5:$G$104,6)) ->  | CZ35: =IF($A35=0," ",VLOOKUP($A35,Salaries!$B$5:$G$104,6)) ->  | DB35: 0
B36: 0 | AH36: 0 | CX36: 0 | CY36: =IF($A36=0," ",VLOOKUP($A36,Salaries!$B$5:$G$104,6)) ->  | CZ36: =IF($A36=0," ",VLOOKUP($A36,Salaries!$B$5:$G$104,6)) ->  | DB36: 0
B37: 0 | AH37: 0 | CX37: 0 | CY37: =IF($A37=0," ",VLOOKUP($A37,Salaries!$B$5:$G$104,6)) ->  | CZ37: =IF($A37=0," ",VLOOKUP($A37,Salaries!$B$5:$G$104,6)) ->  | DB37: 0
B38: 0 | AH38: 0 | CX38: 0 | CY38: =IF($A38=0," ",VLOOKUP($A38,Salaries!$B$5:$G$104,6)) ->  | CZ38: =IF($A38=0," ",VLOOKUP($A38,Salaries!$B$5:$G$104,6)) ->  | DB38: 0
B39: 0 | AH39: 0 | CX39: 0 | CY39: =IF($A39=0," ",VLOOKUP($A39,Salaries!$B$5:$G$104,6)) ->  | CZ39: =IF($A39=0," ",VLOOKUP($A39,Salaries!$B$5:$G$104,6)) ->  | DB39: 0
B40: 0 | AH40: 0 | CX40: 0 | CY40: =IF($A40=0," ",VLOOKUP($A40,Salaries!$B$5:$G$104,6)) ->  | CZ40: =IF($A40=0," ",VLOOKUP($A40,Salaries!$B$5:$G$104,6)) ->  | DB40: 0
B41: 0 | AH41: 0 | CX41: 0 | CY41: =IF($A41=0," ",VLOOKUP($A41,Salaries!$B$5:$G$104,6)) ->  | CZ41: =IF($A41=0," ",VLOOKUP($A41,Salaries!$B$5:$G$104,6)) ->  | DB41: 0
B42: 0 | AH42: 0 | CX42: 0 | CY42: =IF($A42=0," ",VLOOKUP($A42,Salaries!$B$5:$G$104,6)) ->  | CZ42: =IF($A42=0," ",VLOOKUP($A42,Salaries!$B$5:$G$104,6)) ->  | DB42: 0
B43: 0 | AH43: 0 | CX43: 0 | CY43: =IF($A43=0," ",VLOOKUP($A43,Salaries!$B$5:$G$104,6)) ->  | CZ43: =IF($A43=0," ",VLOOKUP($A43,Salaries!$B$5:$G$104,6)) ->  | DB43: 0
B44: 0 | AH44: 0 | CX44: 0 | CY44: =IF($A44=0," ",VLOOKUP($A44,Salaries!$B$5:$G$104,6)) ->  | CZ44: =IF($A44=0," ",VLOOKUP($A44,Salaries!$B$5:$G$104,6)) ->  | DB44: 0
B45: 0 | AH45: 0 | CX45: 0 | CY45: =IF($A45=0," ",VLOOKUP($A45,Salaries!$B$5:$G$104,6)) ->  | CZ45: =IF($A45=0," ",VLOOKUP($A45,Salaries!$B$5:$G$104,6)) ->  | DB45: 0
B46: 0 | AH46: 0 | CX46: 0 | CY46: =IF($A46=0," ",VLOOKUP($A46,Salaries!$B$5:$G$104,6)) ->  | CZ46: =IF($A46=0," ",VLOOKUP($A46,Salaries!$B$5:$G$104,6)) ->  | DB46: 0
B47: 0 | AH47: 0 | CX47: 0 | CY47: =IF($A47=0," ",VLOOKUP($A47,Salaries!$B$5:$G$104,6)) ->  | CZ47: =IF($A47=0," ",VLOOKUP($A47,Salaries!$B$5:$G$104,6)) ->  | DB47: 0
B48: 0 | AH48: 0 | CX48: 0 | CY48: =IF($A48=0," ",VLOOKUP($A48,Salaries!$B$5:$G$104,6)) ->  | CZ48: =IF($A48=0," ",VLOOKUP($A48,Salaries!$B$5:$G$104,6)) ->  | DB48: 0
B49: 0 | AH49: 0 | CX49: 0 | CY49: =IF($A49=0," ",VLOOKUP($A49,Salaries!$B$5:$G$104,6)) ->  | CZ49: =IF($A49=0," ",VLOOKUP($A49,Salaries!$B$5:$G$104,6)) ->  | DB49: 0
B50: 0 | AH50: 0 | CX50: 0 | CY50: =IF($A50=0," ",VLOOKUP($A50,Salaries!$B$5:$G$104,6)) ->  | CZ50: =IF($A50=0," ",VLOOKUP($A50,Salaries!$B$5:$G$104,6)) ->  | DB50: 0
B51: 0 | AH51: 0 | CX51: 0 | CY51: =IF($A51=0," ",VLOOKUP($A51,Salaries!$B$5:$G$104,6)) ->  | CZ51: =IF($A51=0," ",VLOOKUP($A51,Salaries!$B$5:$G$104,6)) ->  | DB51: 0
B52: 0 | AH52: 0 | CX52: 0 | CY52: =IF($A52=0," ",VLOOKUP($A52,Salaries!$B$5:$G$104,6)) ->  | CZ52: =IF($A52=0," ",VLOOKUP($A52,Salaries!$B$5:$G$104,6)) ->  | DB52: 0
B53: 0 | AH53: 0 | CX53: 0 | CY53: =IF($A53=0," ",VLOOKUP($A53,Salaries!$B$5:$G$104,6)) ->  | CZ53: =IF($A53=0," ",VLOOKUP($A53,Salaries!$B$5:$G$104,6)) ->  | DB53: 0
B54: 0 | AH54: 0 | CX54: 0 | CY54: =IF($A54=0," ",VLOOKUP($A54,Salaries!$B$5:$G$104,6)) ->  | CZ54: =IF($A54=0," ",VLOOKUP($A54,Salaries!$B$5:$G$104,6)) ->  | DB54: 0
B55: 0 | AH55: 0 | CX55: 0 | CY55: =IF($A55=0," ",VLOOKUP($A55,Salaries!$B$5:$G$104,6)) ->  | CZ55: =IF($A55=0," ",VLOOKUP($A55,Salaries!$B$5:$G$104,6)) ->  | DB55: 0
B56: 0 | AH56: 0 | CX56: 0 | CY56: =IF($A56=0," ",VLOOKUP($A56,Salaries!$B$5:$G$104,6)) ->  | CZ56: =IF($A56=0," ",VLOOKUP($A56,Salaries!$B$5:$G$104,6)) ->  | DB56: 0
B57: 0 | AH57: 0 | CX57: 0 | CY57: =IF($A57=0," ",VLOOKUP($A57,Salaries!$B$5:$G$104,6)) ->  | CZ57: =IF($A57=0," ",VLOOKUP($A57,Salaries!$B$5:$G$104,6)) ->  | DB57: 0
B58: 0 | AH58: 0 | CX58: 0 | CY58: =IF($A58=0," ",VLOOKUP($A58,Salaries!$B$5:$G$104,6)) ->  | CZ58: =IF($A58=0," ",VLOOKUP($A58,Salaries!$B$5:$G$104,6)) ->  | DB58: 0
B59: 0 | AH59: 0 | CX59: 0 | CY59: =IF($A59=0," ",VLOOKUP($A59,Salaries!$B$5:$G$104,6)) ->  | CZ59: =IF($A59=0," ",VLOOKUP($A59,Salaries!$B$5:$G$104,6)) ->  | DB59: 0
B60: 0 | AH60: 0 | CX60: 0 | CY60: =IF($A60=0," ",VLOOKUP($A60,Salaries!$B$5:$G$104,6)) ->  | CZ60: =IF($A60=0," ",VLOOKUP($A60,Salaries!$B$5:$G$104,6)) ->  | DB60: 0
B61: 0 | AH61: 0 | CX61: 0 | CY61: =IF($A61=0," ",VLOOKUP($A61,Salaries!$B$5:$G$104,6)) ->  | CZ61: =IF($A61=0," ",VLOOKUP($A61,Salaries!$B$5:$G$104,6)) ->  | DB61: 0
B62: 0 | AH62: 0 | CX62: 0 | CY62: =IF($A62=0," ",VLOOKUP($A62,Salaries!$B$5:$G$104,6)) ->  | CZ62: =IF($A62=0," ",VLOOKUP($A62,Salaries!$B$5:$G$104,6)) ->  | DB62: 0
B63: 0 | AH63: 0 | CX63: 0 | CY63: =IF($A63=0," ",VLOOKUP($A63,Salaries!$B$5:$G$104,6)) ->  | CZ63: =IF($A63=0," ",VLOOKUP($A63,Salaries!$B$5:$G$104,6)) ->  | DB63: 0
B64: 0 | AH64: 0 | CX64: 0 | CY64: =IF($A64=0," ",VLOOKUP($A64,Salaries!$B$5:$G$104,6)) ->  | CZ64: =IF($A64=0," ",VLOOKUP($A64,Salaries!$B$5:$G$104,6)) ->  | DB64: 0
B65: 0 | AH65: 0 | CX65: 0 | CY65: =IF($A65=0," ",VLOOKUP($A65,Salaries!$B$5:$G$104,6)) ->  | CZ65: =IF($A65=0," ",VLOOKUP($A65,Salaries!$B$5:$G$104,6)) ->  | DB65: 0
B66: 0 | AH66: 0 | CX66: 0 | CY66: =IF($A66=0," ",VLOOKUP($A66,Salaries!$B$5:$G$104,6)) ->  | CZ66: =IF($A66=0," ",VLOOKUP($A66,Salaries!$B$5:$G$104,6)) ->  | DB66: 0
B67: 0 | AH67: 0 | CX67: 0 | CY67: =IF($A67=0," ",VLOOKUP($A67,Salaries!$B$5:$G$104,6)) ->  | CZ67: =IF($A67=0," ",VLOOKUP($A67,Salaries!$B$5:$G$104,6)) ->  | DB67: 0
B68: 0 | AH68: 0 | CX68: 0 | CY68: =IF($A68=0," ",VLOOKUP($A68,Salaries!$B$5:$G$104,6)) ->  | CZ68: =IF($A68=0," ",VLOOKUP($A68,Salaries!$B$5:$G$104,6)) ->  | DB68: 0
B69: 0 | AH69: 0 | CX69: 0 | CY69: =IF($A69=0," ",VLOOKUP($A69,Salaries!$B$5:$G$104,6)) ->  | CZ69: =IF($A69=0," ",VLOOKUP($A69,Salaries!$B$5:$G$104,6)) ->  | DB69: 0
B70: 0 | AH70: 0 | CX70: 0 | CY70: =IF($A70=0," ",VLOOKUP($A70,Salaries!$B$5:$G$104,6)) ->  | CZ70: =IF($A70=0," ",VLOOKUP($A70,Salaries!$B$5:$G$104,6)) ->  | DB70: 0
B71: 0 | AH71: 0 | CX71: 0 | CY71: =IF($A71=0," ",VLOOKUP($A71,Salaries!$B$5:$G$104,6)) ->  | CZ71: =IF($A71=0," ",VLOOKUP($A71,Salaries!$B$5:$G$104,6)) ->  | DB71: 0
B72: 0 | AH72: 0 | CX72: 0 | CY72: =IF($A72=0," ",VLOOKUP($A72,Salaries!$B$5:$G$104,6)) ->  | CZ72: =IF($A72=0," ",VLOOKUP($A72,Salaries!$B$5:$G$104,6)) ->  | DB72: 0
B73: 0 | AH73: 0 | CX73: 0 | CY73: =IF($A73=0," ",VLOOKUP($A73,Salaries!$B$5:$G$104,6)) ->  | CZ73: =IF($A73=0," ",VLOOKUP($A73,Salaries!$B$5:$G$104,6)) ->  | DB73: 0
B74: 0 | AH74: 0 | CX74: 0 | CY74: =IF($A74=0," ",VLOOKUP($A74,Salaries!$B$5:$G$104,6)) ->  | CZ74: =IF($A74=0," ",VLOOKUP($A74,Salaries!$B$5:$G$104,6)) ->  | DB74: 0
B75: 0 | AH75: 0 | CX75: 0 | CY75: =IF($A75=0," ",VLOOKUP($A75,Salaries!$B$5:$G$104,6)) ->  | CZ75: =IF($A75=0," ",VLOOKUP($A75,Salaries!$B$5:$G$104,6)) ->  | DB75: 0
B76: 0 | AH76: 0 | CX76: 0 | CY76: =IF($A76=0," ",VLOOKUP($A76,Salaries!$B$5:$G$104,6)) ->  | CZ76: =IF($A76=0," ",VLOOKUP($A76,Salaries!$B$5:$G$104,6)) ->  | DB76: 0
B77: 0 | AH77: 0 | CX77: 0 | CY77: =IF($A77=0," ",VLOOKUP($A77,Salaries!$B$5:$G$104,6)) ->  | CZ77: =IF($A77=0," ",VLOOKUP($A77,Salaries!$B$5:$G$104,6)) ->  | DB77: 0
B78: 0 | AH78: 0 | CX78: 0 | CY78: =IF($A78=0," ",VLOOKUP($A78,Salaries!$B$5:$G$104,6)) ->  | CZ78: =IF($A78=0," ",VLOOKUP($A78,Salaries!$B$5:$G$104,6)) ->  | DB78: 0
B79: 0 | AH79: 0 | CX79: 0 | CY79: =IF($A79=0," ",VLOOKUP($A79,Salaries!$B$5:$G$104,6)) ->  | CZ79: =IF($A79=0," ",VLOOKUP($A79,Salaries!$B$5:$G$104,6)) ->  | DB79: 0
B80: 0 | AH80: 0 | CX80: 0 | CY80: =IF($A80=0," ",VLOOKUP($A80,Salaries!$B$5:$G$104,6)) ->  | CZ80: =IF($A80=0," ",VLOOKUP($A80,Salaries!$B$5:$G$104,6)) ->  | DB80: 0
B81: 0 | AH81: 0 | CX81: 0 | CY81: =IF($A81=0," ",VLOOKUP($A81,Salaries!$B$5:$G$104,6)) ->  | CZ81: =IF($A81=0," ",VLOOKUP($A81,Salaries!$B$5:$G$104,6)) ->  | DB81: 0
B82: 0 | AH82: 0 | CX82: 0 | CY82: =IF($A82=0," ",VLOOKUP($A82,Salaries!$B$5:$G$104,6)) ->  | CZ82: =IF($A82=0," ",VLOOKUP($A82,Salaries!$B$5:$G$104,6)) ->  | DB82: 0
B83: 0 | AH83: 0 | CX83: 0 | CY83: =IF($A83=0," ",VLOOKUP($A83,Salaries!$B$5:$G$104,6)) ->  | CZ83: =IF($A83=0," ",VLOOKUP($A83,Salaries!$B$5:$G$104,6)) ->  | DB83: 0
B84: 0 | AH84: 0 | CX84: 0 | CY84: =IF($A84=0," ",VLOOKUP($A84,Salaries!$B$5:$G$104,6)) ->  | CZ84: =IF($A84=0," ",VLOOKUP($A84,Salaries!$B$5:$G$104,6)) ->  | DB84: 0
B85: =COUNTA(C85:AG85)-CX85-DB85 -> 0 | AH85: =B85*8 -> 0 | CX85: =COUNTIF(C85:AG85,"CP") -> 0 | CY85: =IF($A85=0," ",VLOOKUP($A85,Salaries!$B$5:$G$104,6)) ->  | CZ85: =IF($A85=0," ",VLOOKUP($A85,Salaries!$B$5:$G$104,6)) ->  | DA85: =IFERROR(CZ85/8,"") ->  | DB85: =COUNTIF(C85:AG85,"MAL")+COUNTIF(C85:AG85,"AT") -> 0
B86: 0 | AH86: 0 | CX86: 0 | CY86: =IF($A86=0," ",VLOOKUP($A86,Salaries!$B$5:$G$104,6)) ->  | CZ86: =IF($A86=0," ",VLOOKUP($A86,Salaries!$B$5:$G$104,6)) ->  | DB86: 0
B87: 0 | AH87: 0 | CX87: 0 | CY87: =IF($A87=0," ",VLOOKUP($A87,Salaries!$B$5:$G$104,6)) ->  | CZ87: =IF($A87=0," ",VLOOKUP($A87,Salaries!$B$5:$G$104,6)) ->  | DB87: 0
B88: 0 | AH88: 0 | CX88: 0 | CY88: =IF($A88=0," ",VLOOKUP($A88,Salaries!$B$5:$G$104,6)) ->  | CZ88: =IF($A88=0," ",VLOOKUP($A88,Salaries!$B$5:$G$104,6)) ->  | DB88: 0
B89: 0 | AH89: 0 | CX89: 0 | CY89: =IF($A89=0," ",VLOOKUP($A89,Salaries!$B$5:$G$104,6)) ->  | CZ89: =IF($A89=0," ",VLOOKUP($A89,Salaries!$B$5:$G$104,6)) ->  | DB89: 0

Sheet Pâques (hidden)
B1: Année | D1: Pâques | M1: Année | O1: Pâques A+1 | X1: Année | Z1: Pâques A-1
B2: 2017 | D2: =TEXT(D66,"jj")&" "&TEXT(D68,"mmmm")&" "&B2 -> 16 avril 2017 | G2: 2017-03-22 | M2: 2018 | O2: =TEXT(O66,"jj")&" "&TEXT(O68,"mmmm")&" "&M2 -> 01 avril 2018 | R2: 2018-03-22 | X2: 2016 | Z2: =TEXT(Z66,"jj")&" "&TEXT(Z68,"mmmm")&" "&X2 -> 27 mars 2016 | AC2: 2016-03-22
B5: Calcul de G | C5: =INT(B2/19) -> 106 | D5: =19*C5 -> 2014 | E5: =B2-D5 -> 3 | I5: G= | J5: =E5 -> 3 | M5: Calcul de G | N5: =INT(M2/19) -> 106 | O5: =19*N5 -> 2014 | P5: =M2-O5 -> 4 | T5: G= | U5: =P5 -> 4 | X5: Calcul de G | Y5: =INT(X2/19) -> 106 | Z5: =19*Y5 -> 2014 | AA5: =X2-Z5 -> 2 | AE5: G= | AF5: =AA5 -> 2
B7: Calcul de C | C7: =INT(B2/100) -> 20 | I7: C= | J7: =C7 -> 20 | M7: Calcul de C | N7: =INT(M2/100) -> 20 | T7: C= | U7: =N7 -> 20 | X7: Calcul de C | Y7: =INT(X2/100) -> 20 | AE7: C= | AF7: =Y7 -> 20
B9: Calcul de C4 | C9: =INT(C7/4) -> 5 | I9: C4= | J9: =C9 -> 5 | M9: Calcul de C4 | N9: =INT(N7/4) -> 5 | T9: C4= | U9: =N9 -> 5 | X9: Calcul de C4 | Y9: =INT(Y7/4) -> 5 | AE9: C4= | AF9: =Y9 -> 5
B11: Calcul de E | C11: =INT((8*J7+13)/25) -> 6 | I11: E= | J11: =C11 -> 6 | M11: Calcul de E | N11: =INT((8*U7+13)/25) -> 6 | T11: E= | U11: =N11 -> 6 | X11: Calcul de E | Y11: =INT((8*AF7+13)/25) -> 6 | AE11: E= | AF11: =Y11 -> 6
B13: Calcul de H | C13: =INT((19*J5+J7-J9-J11+15)/30) -> 2 | D13: =C13*30 -> 60 | E13: =INT(19*J5+J7-J9-J11+15) -> 81 | F13: =E13-D13 -> 21 | I13: H= | J13: =F13 -> 21 | M13: Calcul de H | N13: =INT((19*U5+U7-U9-U11+15)/30) -> 3 | O13: =N13*30 -> 90 | P13: =INT(19*U5+U7-U9-U11+15) -> 100 | Q13: =P13-O13 -> 10 | T13: H= | U13: =Q13 -> 10 | X13: Calcul de H | Y13: =INT((19*AF5+AF7-AF9-AF11+15)/30) -> 2 | Z13: =Y13*30 -> 60 | AA13: =INT(19*AF5+AF7-AF9-AF11+15) -> 62 | AB13: =AA13-Z13 -> 2 | AE13: H= | AF13: =AB13 -> 2
B15: Calcul de K | C15: =INT(J13/28) -> 0 | I15: K= | J15: =C15 -> 0 | M15: Calcul de K | N15: =INT(U13/28) -> 0 | T15: K= | U15: =N15 -> 0 | X15: Calcul de K | Y15: =INT(AF13/28) -> 0 | AE15: K= | AF15: =Y15 -> 0
B17: Calcul de P | C17: =INT(29/(J13+1)) -> 1 | I17: P= | J17: =C17 -> 1 | M17: Calcul de P | N17: =INT(29/(U13+1)) -> 2 | T17: P= | U17: =N17 -> 2 | X17: Calcul de P | Y17: =INT(29/(AF13+1)) -> 9 | AE17: P= | AF17: =Y17 -> 9
B19: Calcul de Q | C19: =INT((21-J5)/11) -> 1 | I19: Q= | J19: =C19 -> 1 | M19: Calcul de Q | N19: =INT((21-U5)/11) -> 1 | T19: Q= | U19: =N19 -> 1 | X19: Calcul de Q | Y19: =INT((21-AF5)/11) -> 1 | AE19: Q= | AF19: =Y19 -> 1
B21: Calcul de I | C21: =(J15*J17*J19-1)*J15+J13 -> 21 | I21: I= | J21: =C21 -> 21 | M21: Calcul de I | N21: =(U15*U17*U19-1)*U15+U13 -> 10 | T21: I= | U21: =N21 -> 10 | X21: Calcul de I | Y21: =(AF15*AF17*AF19-1)*AF15+AF13 -> 2 | AE21: I= | AF21: =Y21 -> 2
B23: Calcul de B | C23: =INT(B2/4)+B2 -> 2521 | I23: B= | J23: =C23 -> 2521 | M23: Calcul de B | N23: =INT(M2/4)+M2 -> 2522 | T23: B= | U23: =N23 -> 2522 | X23: Calcul de B | Y23: =INT(X2/4)+X2 -> 2520 | AE23: B= | AF23: =Y23 -> 2520
B25: Calcul de J1 | C25: =J23+J21+2+J9-J7 -> 2529 | I25: J1= | J25: =C25 -> 2529 | M25: Calcul de J1 | N25: =U23+U21+2+U9-U7 -> 2519 | T25: J1= | U25: =N25 -> 2519 | X25: Calcul de J1 | Y25: =AF23+AF21+2+AF9-AF7 -> 2509 | AE25: J1= | AF25: =Y25 -> 2509
B27: Calcul de J2 | C27: =INT(J25/7) -> 361 | D27: =C27*7 -> 2527 | E27: =J25-D27 -> 2 | I27: J2= | J27: =E27 -> 2 | M27: Calcul de J2 | N27: =INT(U25/7) -> 359 | O27: =N27*7 -> 2513 | P27: =U25-O27 -> 6 | T27: J2= | U27: =P27 -> 6 | X27: Calcul de J2 | Y27: =INT(AF25/7) -> 358 | Z27: =Y27*7 -> 2506 | AA27: =AF25-Z27 -> 3 | AE27: J2= | AF27: =AA27 -> 3
B29: Calcul de R | C29: =28+J21-J27 -> 47 | I29: R= | J29: =C29 -> 47 | M29: Calcul de R | N29: =28+U21-U27 -> 32 | T29: R= | U29: =N29 -> 32 | X29: Calcul de R | Y29: =28+AF21-AF27 -> 27 | AE29: R= | AF29: =Y29 -> 27
B32: 22 | C32: =G2+1-1 -> 2017-03-22 | E32: 3 | M32: 22 | N32: =R2+1-1 -> 2018-03-22 | P32: 3 | X32: 22 | Y32: =AC2+1-1 -> 2016-03-22 | AA32: 3
B33: 23 | C33: =C32+1 -> 2017-03-23 | E33: 3 | M33: 23 | N33: =N32+1 -> 2018-03-23 | P33: 3 | X33: 23 | Y33: =Y32+1 -> 2016-03-23 | AA33: 3
B34: 24 | C34: =C33+1 -> 2017-03-24 | E34: 3 | M34: 24 | N34: =N33+1 -> 2018-03-24 | P34: 3 | X34: 24 | Y34: =Y33+1 -> 2016-03-24 | AA34: 3
B35: 25 | C35: 2017-03-25 | E35: 3 | M35: 25 | N35: 2018-03-25 | P35: 3 | X35: 25 | Y35: 2016-03-25 | AA35: 3
B36: 26 | C36: 2017-03-26 | E36: 3 | M36: 26 | N36: 2018-03-26 | P36: 3 | X36: 26 | Y36: 2016-03-26 | AA36: 3
B37: 27 | C37: 2017-03-27 | E37: 3 | M37: 27 | N37: 2018-03-27 | P37: 3 | X37: 27 | Y37: 2016-03-27 | AA37: 3
B38: 28 | C38: 2017-03-28 | E38: 3 | M38: 28 | N38: 2018-03-28 | P38: 3 | X38: 28 | Y38: 2016-03-28 | AA38: 3
B39: 29 | C39: 2017-03-29 | E39: 3 | M39: 29 | N39: 2018-03-29 | P39: 3 | X39: 29 | Y39: 2016-03-29 | AA39: 3
B40: 30 | C40: 2017-03-30 | E40: 3 | M40: 30 | N40: 2018-03-30 | P40: 3 | X40: 30 | Y40: 2016-03-30 | AA40: 3
B41: 31 | C41: 2017-03-31 | E41: 3 | M41: 31 | N41: 2018-03-31 | P41: 3 | X41: 31 | Y41: 2016-03-31 | AA41: 3
B42: 32 | C42: 2017-04-01 | E42: 4 | M42: 32 | N42: 2018-04-01 | P42: 4 | X42: 32 | Y42: 2016-04-01 | AA42: 4
B43: 33 | C43: 2017-04-02 | E43: 4 | M43: 33 | N43: 2018-04-02 | P43: 4 | X43: 33 | Y43: 2016-04-02 | AA43: 4
B44: 34 | C44: 2017-04-03 | E44: 4 | M44: 34 | N44: 2018-04-03 | P44: 4 | X44: 34 | Y44: 2016-04-03 | AA44: 4
B45: 35 | C45: 2017-04-04 | E45: 4 | M45: 35 | N45: 2018-04-04 | P45: 4 | X45: 35 | Y45: 2016-04-04 | AA45: 4
B46: 36 | C46: 2017-04-05 | E46: 4 | M46: 36 | N46: 2018-04-05 | P46: 4 | X46: 36 | Y46: 2016-04-05 | AA46: 4
B47: 37 | C47: 2017-04-06 | E47: 4 | M47: 37 | N47: 2018-04-06 | P47: 4 | X47: 37 | Y47: 2016-04-06 | AA47: 4
B48: 38 | C48: 2017-04-07 | E48: 4 | M48: 38 | N48: 2018-04-07 | P48: 4 | X48: 38 | Y48: 2016-04-07 | AA48: 4
B49: 39 | C49: 2017-04-08 | E49: 4 | M49: 39 | N49: 2018-04-08 | P49: 4 | X49: 39 | Y49: 2016-04-08 | AA49: 4
B50: 40 | C50: 2017-04-09 | E50: 4 | M50: 40 | N50: 2018-04-09 | P50: 4 | X50: 40 | Y50: 2016-04-09 | AA50: 4
B51: 41 | C51: 2017-04-10 | E51: 4 | M51: 41 | N51: 2018-04-10 | P51: 4 | X51: 41 | Y51: 2016-04-10 | AA51: 4
B52: 42 | C52: 2017-04-11 | E52: 4 | M52: 42 | N52: 2018-04-11 | P52: 4 | X52: 42 | Y52: 2016-04-11 | AA52: 4
B53: 43 | C53: 2017-04-12 | E53: 4 | M53: 43 | N53: 2018-04-12 | P53: 4 | X53: 43 | Y53: 2016-04-12 | AA53: 4
B54: 44 | C54: 2017-04-13 | E54: 4 | M54: 44 | N54: 2018-04-13 | P54: 4 | X54: 44 | Y54: 2016-04-13 | AA54: 4
B55: 45 | C55: 2017-04-14 | E55: 4 | M55: 45 | N55: 2018-04-14 | P55: 4 | X55: 45 | Y55: 2016-04-14 | AA55: 4
B56: 46 | C56: 2017-04-15 | E56: 4 | M56: 46 | N56: 2018-04-15 | P56: 4 | X56: 46 | Y56: 2016-04-15 | AA56: 4
B57: 47 | C57: 2017-04-16 | E57: 4 | M57: 47 | N57: 2018-04-16 | P57: 4 | X57: 47 | Y57: 2016-04-16 | AA57: 4
B58: 48 | C58: 2017-04-17 | E58: 4 | M58: 48 | N58: 2018-04-17 | P58: 4 | X58: 48 | Y58: 2016-04-17 | AA58: 4
B59: 49 | C59: 2017-04-18 | E59: 4 | M59: 49 | N59: 2018-04-18 | P59: 4 | X59: 49 | Y59: 2016-04-18 | AA59: 4
B60: 50 | C60: 2017-04-19 | E60: 4 | M60: 50 | N60: 2018-04-19 | P60: 4 | X60: 50 | Y60: 2016-04-19 | AA60: 4
B61: 51 | C61: 2017-04-20 | E61: 4 | M61: 51 | N61: 2018-04-20 | P61: 4 | X61: 51 | Y61: 2016-04-20 | AA61: 4
B62: 52 | C62: 2017-04-21 | E62: 4 | M62: 52 | N62: 2018-04-21 | P62: 4 | X62: 52 | Y62: 2016-04-21 | AA62: 4
B63: 53 | C63: 2017-04-22 | E63: 4 | M63: 53 | N63: 2018-04-22 | P63: 4 | X63: 53 | Y63: 2016-04-22 | AA63: 4
B64: 54 | C64: 2017-04-23 | E64: 4 | M64: 54 | N64: 2018-04-23 | P64: 4 | X64: 54 | Y64: 2016-04-23 | AA64: 4
B65: 55 | C65: 2017-04-24 | D65: Pâques | E65: 4 | M65: 55 | N65: 2018-04-24 | O65: Pâques | P65: 4 | X65: 55 | Y65: 2016-04-24 | Z65: Pâques | AA65: 4
B66: 56 | C66: 2017-04-25 | D66: =VLOOKUP(J29,B32:C66,2) -> 2017-04-16 | M66: 56 | N66: 2018-04-25 | O66: =VLOOKUP(U29,M32:N66,2) -> 2018-04-01 | X66: 56 | Y66: 2016-04-25 | Z66: =VLOOKUP(AF29,X32:Y66,2) -> 2016-03-27
D67: =TEXT(D66,"jj") -> 16 | O67: =TEXT(O66,"jj") -> 01 | Z67: =TEXT(Z66,"jj") -> 27
D68: =TEXT(D66,"mmmm") -> avril | O68: =TEXT(O66,"mmmm") -> avril | Z68: =TEXT(Z66,"mmmm") -> mars
B69: =COUNTA(B70:B270) -> 10 | C69: 263 | M69: =COUNTA(M70:M270) -> 0 | N69: 41 | X69: =COUNTA(X70:X270) -> 0 | Y69: 41
B70: La curiosité est un vilain défaut !
B71: Cliquer sans savoir où l'on va n'est pas très sérieux !
B72: Tant que l'on joue on ne travaille pas !
B73: Mieux vaut cliquer que ne rien faire !
B74: Bravo ! Vous avez gagné le droit de cliquer !
B75: Un clic à gauche, un clic à droite, et le temps passe…
B76: ="Depuis la création de ce planning "&C69&" personnes curieuses ont cliqué sur une barre vide !!! Etonnant non ?" -> Depuis la création de ce planning 263 personnes curieuses ont cliqué sur une barre vide !!! Etonnant non ?
B77: Moins il y a d'informations sur une barre plus la tentation d'aller regarder est Grande…
B78: Raté, il n'y a rien derrière cette barre. Non mais des fois !!!
B79: Pourquoi venir voir ici il n'y a rien. M'enfin !!!
